Cogmind - Beta 17.1 @@@ ROGUE MODE // 2026.09.01 @ 03:17:17 Player: 4R-ZE3 Result: Self-destructed Performance ------------- Evolutions (1) 500 Regions Visited (6) 1200 Robots Destroyed (50) 250 Value Destroyed (1286) 1286 Prototype IDs (14) 280 Alien Tech Used (0) 0 Bonus (5660) 5660 TOTAL SCORE: 9176 Bonus ------- Follower Combat Kills 126 Prayed to X0-1V1 5000 Major X0-1V1 Interference 250 Registered with UFD 300 Friendly Fire -16 Cogmind --------- Core Integrity 156/200 Matter 294/300 Energy 1100/1100 System Corruption 0% Temperature Cool (27) Movement Rolling (120) Ox2 Location -9/Scraptown Parts ------- > --- POWER (1) -------- (None) > --- PROPULSION (4) --- Armored Wheel Armored Wheel Armored Wheel > --- UTILITY (3) ------ Cooling System Huge Storage Unit X0-1V1's Piety Tracker > --- WEAPON (2) ------- Improved Assault Rifle > --- INVENTORY (26) --- Cooled Ion Engine Light Treads Light Treads Light Treads Light Treads Light Treads Improved Treads Improved Treads Wheel Improved Heat Sink Cooling System High-capacity Storage Unit Advanced Terrain Scanner Medium Armor Plating Makeshift Kinetic Plating Improved Hardlight Generator Heavy Assault Rifle Improved Assault Rifle Improved Assault Rifle Minigun Minigun Gauss Rifle Grenade Launcher Rocket Launcher Improved Grenade Launcher CPS Tube (2) Peak State ------------ > --- POWER ------------ Cooled Ion Engine > --- PROPULSION ------- Armored Wheel Armored Wheel Armored Wheel Armored Wheel > --- UTILITY ---------- Cooling System Huge Storage Unit X0-1V1's Piety Tracker > --- WEAPON ----------- Improved Assault Rifle Improved Assault Rifle > --- INVENTORY -------- Cooled Ion Engine Light Treads Light Treads Light Treads Light Treads Light Treads Improved Treads Improved Treads Wheel Improved Heat Sink Cooling System High-capacity Storage Unit Advanced Terrain Scanner Medium Armor Plating Makeshift Kinetic Plating Improved Hardlight Generator Heavy Assault Rifle Improved Assault Rifle Minigun Minigun Gauss Rifle Grenade Launcher Rocket Launcher Improved Grenade Launcher CPS Tube CPS Tube [Rating: 39] Favorites ----------- Power Cooled Ion Engine Engine Cooled Ion Engine Propulsion Light Treads Treads Light Treads Wheel Armored Wheel Utility X0-1V1's Piety Tracker Device X0-1V1's Piety Tracker Storage Huge Storage Unit Weapon Improved Assault Rifle Energy Gun Improved Medium Laser Ballistic Gun Improved Assault Rifle Ballistic Cannon Light Cannon Launcher Grenade Launcher Special Weapon CPS Tube Build | -11 -10 -10 -9 -9 -9 -9 ------- Run | Yrd Mat Min Mat Sto Rec Scr Slots Evolved 2 | . . . 2 . . . Power . | . . . . . . . Propulsion 1 | . . . 1 . . . Utility 1 | . . . 1 . . . Weapon . | . . . . . . . Parts Attached 46 | 6 11 7 12 5 1 4 Power 5 | 1 1 1 2 . . . Engine 5 | 1 1 1 2 . . . Core . | . . . . . . . Reactor . | . . . . . . . Propulsion 15 | 2 2 2 4 3 . 2 Treads 7 | 2 2 . 1 2 . . Leg . | . . . . . . . Wheel 8 | . . 2 3 1 . 2 Hover . | . . . . . . . Flight . | . . . . . . . Utility 9 | 1 3 1 3 1 . . Device 6 | . 3 1 2 . . . Storage 3 | 1 . . 1 1 . . Processor . | . . . . . . . Hackware . | . . . . . . . Protection . | . . . . . . . Artifact . | . . . . . . . Weapon 17 | 2 5 3 3 1 1 2 Energy Gun 2 | 1 . . 1 . . . Energy Cannon . | . . . . . . . Ballistic Gun 11 | 1 3 3 2 . 1 1 Ballistic Cannon 1 | . 1 . . . . . Launcher 2 | . 1 . . 1 . . Special Weapon 1 | . . . . . . 1 Impact Weapon . | . . . . . . . Slashing Weapon . | . . . . . . . Piercing Weapon . | . . . . . . . Special Melee Weapon . | . . . . . . . Unidentified Prototypes 5 | . . 1 4 . . . Parts Lost 17 | . 4 7 2 1 . 3 Power 4 | . 1 1 1 . . 1 Propulsion 7 | . 2 2 1 1 . 1 Utility 1 | . . 1 . . . . Weapon 5 | . 1 3 . . . 1 Highest Loss Streak 7 | . 2 7 2 1 . 3 To Critical Strikes . | . . . . . . . Average Backups 14 | 1 7 5 8 14 20 25 Power . | . . . 1 1 1 1 Propulsion 4 | 1 2 . 1 4 7 8 Utility 3 | . 1 1 1 2 3 6 Weapon 5 | . 2 2 3 5 7 7 Tool/Special . | . . . . . . . Unused Backups 28 | . 4 . 2 . . 22 Power 2 | . . . 1 . . 1 Propulsion 8 | . 2 . . . . 6 Utility 8 | . 2 . . . . 6 Weapon 9 | . . . 1 . . 8 Tool/Special 1 | . . . . . . 1 Average Slot Usage (%) 97 | . 94 92 98 99 99 99 Engine 11 | . 13 10 11 10 10 10 Treads 18 | . 25 4 7 18 20 19 Wheel 15 | . . 19 23 20 20 20 Device 17 | . 12 13 21 20 20 20 Storage 11 | . 14 14 11 10 10 10 Energy Gun 1 | . 1 . 8 . . . Ballistic Gun 18 | . 16 26 13 19 19 19 Ballistic Cannon 2 | . 8 . . . . . Peak Build Rating 39 | 6 10 24 33 35 36 39 Average Rating 25 | 4 7 19 30 34 34 36 On Entrance 20 | . 6 10 24 32 35 36 Avg Prop Armor Cover (%) 14 | . . . 9 13 16 16 Naked Turns . | . . . . . . . Heaviest Build 97 | 11 18 19 27 97 97 97 Greatest Support 48 | 40 40 40 30 40 24 48 Greatest Overweight (x) 4 | 3 . 3 1 4 4 4 Average Overweight (x) 2 | . . . . 3 3 3 Largest Inventory Capacity 26 | 8 8 8 10 25 26 26 Average Capacity 17 | 7 8 8 8 23 25 26 Most Carried 26 | 3 8 8 10 18 24 26 Average Carried 14 | 1 7 5 8 14 20 25 Final Capacity 26 | 8 8 8 10 25 26 26 Final Carried 26 | 3 8 7 10 17 24 26 Class Distribution -------------------- 56% | Mutant 38% | Commander-Mutant 4% | Scavenger-Mutant Dominant Class ---------------- Mutant | -10/Materials Mutant | -10/Mines Mutant | -9/Materials Mutant | -9/Storage Commander-Mutant | -9/Recycling Commander-Mutant | -9/Scraptown Resources | -11 -10 -10 -9 -9 -9 -9 ----------- Run | Yrd Mat Min Mat Sto Rec Scr Matter Collected 1578 | 105 329 284 427 280 126 27 Remotely . | . . . . . . . Salvage Created 1668 | . 310 109 628 524 97 . Parts 94 | . 29 5 33 25 2 . Haulers Intercepted 2 | . . . 2 . . . Recyclers Shooed 1 | . . . 1 . . . Parts Field Recycled . | . . . . . . . Retrieved Matter . | . . . . . . . Parts Self-Destructed . | . . . . . . . Prevented . | . . . . . . . Parts Restored . | . . . . . . . Kills | -11 -10 -10 -9 -9 -9 -9 ------- Run | Yrd Mat Min Mat Sto Rec Scr Combat Hostiles Destroyed 52 | . 15 16 8 12 1 . Guns 31 | . 4 9 8 9 1 . Cannons 5 | . 4 1 . . . . AOE 16 | . 7 6 . 3 . . Classes Destroyed 12 | . 4 3 4 . 1 . Builder 3 | . 2 . 1 . . . Tunneler 1 | . . 1 . . . . Hauler 2 | . . . 2 . . . Recycler 2 | . . . 2 . . . Watcher 2 | . 1 . 1 . . . Swarmer 12 | . 9 3 . . . . Grunt 17 | . 6 . 4 7 . . Brawler 1 | . . . . . 1 . Duelist 2 | . . . 1 1 . . Sentry 7 | . . . 3 4 . . Demolisher 1 | . . 1 . . . . Assembled 12 | . . 12 . . . . Best Kill Streak 13 | . 6 13 4 4 1 . Combat Bots Only 13 | . 5 13 2 4 1 . Max Kills in Single Turn 3 | . 3 3 1 3 1 . Gunslinging . | . . . . . . . Exploded 3 | . 2 3 . 3 . . Melee . | . . . . . . . Uniques/NPCs Destroyed . | . . . . . . . Combat | -11 -10 -10 -9 -9 -9 -9 -------- Run | Yrd Mat Min Mat Sto Rec Scr Hostile Shots Fired 244 | . 81 56 41 45 . 21 Missed 51 | . 11 10 16 11 . 3 Hits 193 | . 70 46 25 34 . 18 Melee 7 | . . 7 . . . . Projectile 186 | . 70 39 25 34 . 18 AOE 9 | . . 9 . . . . Critical Strikes 4 | . . . . 2 . 2 Damage Taken 2998 | . 762 880 382 464 . 510 Core 369 | . 63 164 58 40 . 44 Absorbed by Shields 21 | . . 21 . . . . Core Remaining (%) 54 | 100 . 9 . . . . Volleys Fired 145 | . 35 27 36 41 5 1 Largest 2 | . 2 2 2 2 2 1 Hottest 81 | . 50 40 81 48 48 . Shots Fired 251 | . 59 50 72 59 10 1 Gun 226 | . 40 46 72 58 10 . Cannon 14 | . 14 . . . . . Launcher 10 | . 5 4 . 1 . . Special 1 | . . . . . . 1 Kinetic 219 | . 54 46 51 58 10 . Thermal 21 | . . . 21 . . . Explosive 10 | . 5 4 . 1 . . Electromagnetic . | . . . . . . . Robot Hit Streak 28 | . 12 8 10 28 12 13 Robot Miss Streak 4 | . 3 4 2 2 . . Penetration Max . | . . . . . . . Secondary Targets 3 | . . 1 1 1 . . Max Gunslinging Chain 1 | . . 1 1 1 . . Shots Hit Robots 169 | . 43 28 50 38 9 1 Core Hits 99 | . 24 35 20 18 2 . Critical Kills . | . . . . . . . Critical Parts Destroyed 1 | . . . 1 . . . Critical Strikes 3 | . . . 3 . . . Burn 2 | . . . 2 . . . Destroy 1 | . . . 1 . . . Melee Attacks . | . . . . . . . Impact . | . . . . . . . Slashing . | . . . . . . . Piercing . | . . . . . . . Sneak Attacks . | . . . . . . . Combat Hostiles . | . . . . . . . Follow-up Attacks . | . . . . . . . Damage Inflicted 3531 | . 931 780 853 770 144 53 Guns 2321 | . 351 354 853 619 144 . Cannons 205 | . 128 77 . . . . Explosions 952 | . 452 349 . 151 . . Melee . | . . . . . . . Ramming 53 | . . . . . . 53 Kinetic 2290 | . 479 431 617 619 144 . Thermal 236 | . . . 236 . . . Explosive 952 | . 452 349 . 151 . . Electromagnetic . | . . . . . . . Impact . | . . . . . . . Slashing . | . . . . . . . Piercing . | . . . . . . . Highest Corruption 10 | . . . 10 10 10 . Average Corruption 9 | . . . 9 10 10 . Corruption Purged . | . . . . . . . Corruption Blocked . | . . . . . . . Effects 46 | . . . 17 16 13 . Message Errors 11 | . . . 1 7 3 . Matter Fused 11 | . . . 6 1 4 . Heat Flow Errors 6 | . . . 3 . 3 . Energy Discharges 5 | . . . 1 2 2 . Data Loss (minor) 4 | . . . 2 1 1 . Data Loss (major) 3 | . . . 1 2 . . Misfires 1 | . . . 1 . . . Misdirections 1 | . . . 1 . . . Weapon Failures 4 | . . . 1 3 . . Overload Shots . | . . . . . . . Overflow Damage 28 | . 10 . . . . 18 Projectiles 10 | . 10 . . . . . Explosions . | . . . . . . . Melee 18 | . . . . . . 18 Knockbacks . | . . . . . . . Impact . | . . . . . . . Kinetic . | . . . . . . . Secondary . | . . . . . . . Self-Inflicted Damage 140 | . 114 . . . . 26 Shots 5 | . 5 . . . . . Rammed 1 | . . . . . . 1 Targets Rammed 1 | . . . . . . 1 Kicked . | . . . . . . . Crushed . | . . . . . . . Highest Temperature 208 | . 1 . 192 4 208 7 Average Temperature 46 | . 1 . 31 4 98 7 Received Heat Transfer 776 | . 210 20 132 216 . 198 Siege Activations . | . . . . . . . Martial Activations . | . . . . . . . Shielding Activations . | . . . . . . . Robots Disrupted . | . . . . . . . Combat Hostiles . | . . . . . . . Robots Corrupted . | . . . . . . . Combat Hostiles . | . . . . . . . Parts Fried . | . . . . . . . Impact Corruptions 1 | . . . . . . 1 Robots Melted . | . . . . . . . Combat Hostiles . | . . . . . . . Parts Melted 1 | . . . 1 . . . Heat Transferred 666 | . . . 666 . . . Parts Sabotaged . | . . . . . . . Parts Stolen . | . . . . . . . Parts Stripped . | . . . . . . . Power Chain Reactions . | . . . . . . . Alert | -11 -10 -10 -9 -9 -9 -9 ------- Run | Yrd Mat Min Mat Sto Rec Scr Maximum Alert Level 1 | . . . . 1 . . Low Security (%) 96 | 100 100 100 100 72 100 . Level 1 3 | . . . . 27 . . Level 2 . | . . . . . . . Level 3 . | . . . . . . . Level 4 . | . . . . . . . Level 5 . | . . . . . . . High Security . | . . . . . . . Max Security . | . . . . . . . Sterilizations 1 | . . . 1 . . . Peak Influence 243 | . 145 83 84 243 122 . Initial 81 | . . 28 24 35 81 . Average 60 | . 61 32 17 173 39 . Influence Increases 1689 | . 482 189 262 398 358 . Destroy 0b10 Robot/C 900 | . 300 120 180 240 60 . Destroy 0b10 Robot/NC 55 | . 15 5 30 . 5 . Destroy Leader 208 | . 62 30 46 70 . . Allied During Kill 54 | . . 8 . 15 31 . Successful Hack 37 | . 12 . 5 14 6 . Select Force Hacks 180 | . 30 . . . 150 . Disable Machine 30 | . . . . 30 . . Destroy Structure 74 | . 33 26 1 14 . . Lose Combat Pursuer 45 | . 30 . . 15 . . Miscellaneous 106 | . . . . . 106 . Influence Decreases 1689 | . 409 199 241 273 475 92 Entered New Map 353 | . . 45 39 49 128 92 Time Decay 1198 | . 369 120 168 214 327 . Lost Part 94 | . 40 34 10 10 . . Lost Ally 44 | . . . 24 . 20 . Squads Dispatched 5 | . 3 . . 2 . . Investigation 3 | . 2 . . 1 . . Extermination . | . . . . . . . Reinforcement 2 | . 1 . . 1 . . Assault . | . . . . . . . Garrison . | . . . . . . . Intercept . | . . . . . . . Searches Triggered . | . . . . . . . Construction Impeded . | . . . . . . . Haulers Reinforced . | . . . . . . . Active Scanning Responses . | . . . . . . . Cargo Convoy Interrupts . | . . . . . . . Stealth | -11 -10 -10 -9 -9 -9 -9 --------- Run | Yrd Mat Min Mat Sto Rec Scr Distress Signals 6 | . 2 . 2 2 . . Communications Jammed . | . . . . . . . Distress Signals . | . . . . . . . Times Spotted 96 | . 21 28 14 18 2 13 Peak Tracking Total 20 | . 4 20 4 6 2 20 Tactical Retreats 4 | . 1 2 . 1 . . Traps | -11 -10 -10 -9 -9 -9 -9 ------- Run | Yrd Mat Min Mat Sto Rec Scr Traps Triggered 4 | . . . 3 1 . . Indirectly . | . . . . . . . Trap Hack Attempts . | . . . . . . . Triggered . | . . . . . . . Disarmed . | . . . . . . . Reprogrammed . | . . . . . . . Reused . | . . . . . . . Traps Extracted . | . . . . . . . Installed . | . . . . . . . Triggered . | . . . . . . . Machines | -11 -10 -10 -9 -9 -9 -9 ---------- Run | Yrd Mat Min Mat Sto Rec Scr Machines Disabled 2 | . . . . 2 . . Max in Single Turn 1 | . . . . 1 . . Machines Repaired . | . . . . . . . Machines Dismantled . | . . . . . . . Machines Sabotaged . | . . . . . . . Overloaded Fab Kills . | . . . . . . . Hacking | -11 -10 -10 -9 -9 -9 -9 --------- Run | Yrd Mat Min Mat Sto Rec Scr Machines Accessed 24 | . 6 . 4 2 9 3 Terminals 15 | . 5 . 4 2 4 . Fabricators . | . . . . . . . Repair Stations . | . . . . . . . Recycling Units 6 | . 1 . . . 5 . Scanalyzers . | . . . . . . . Garrison Access . | . . . . . . . Total Hacks 59 | . 10 . 10 9 16 14 Successful 26 | . 3 . 2 1 6 14 Failed 33 | . 7 . 8 8 10 . Catastrophic 8 | . 1 . 3 3 1 . Database Lockouts . | . . . . . . . Manual 42 | . 11 . 10 5 16 . Terminals 37 | . 9 . 10 9 9 . Fabricators . | . . . . . . . Repair Stations . | . . . . . . . Recycling Units 8 | . 1 . . . 7 . Scanalyzers . | . . . . . . . Garrison Access . | . . . . . . . Terminal Hacks 18 | . 2 . 1 . 1 14 Record 5 | . . . . . . 5 Robot Analysis 9 | . 1 . . . . 8 Branch Access Points 1 | . . . 1 . . . Zone Layout 2 | . 1 . . . 1 . Proto ID Catalog 1 | . . . . . . 1 Fabricator Hacks . | . . . . . . . Repair Station Hacks . | . . . . . . . Recycling Unit Hacks . | . . . . . . . Scanalyzer . | . . . . . . . Garrison Access Hacks . | . . . . . . . Unauthorized Hacks 8 | . 1 . 1 1 5 . Terminals 2 | . . . 1 1 . . Botnet 2 | . . . 1 1 . . Fabricators . | . . . . . . . Repair Stations . | . . . . . . . Recycling Units 6 | . 1 . . . 5 . Tunnel 6 | . 1 . . . 5 . Scanalyzers . | . . . . . . . Garrison Access . | . . . . . . . Data Cores Recovered . | . . . . . . . Used . | . . . . . . . Hacking Detections 14 | . 4 . 4 3 3 . Full Trace Events 2 | . 1 . . 1 . . Feedback Events . | . . . . . . . Feedback Blocked . | . . . . . . . Robot Schematics Acquired . | . . . . . . . Robots Built . | . . . . . . . Authchips . | . . . . . . . Time . | . . . . . . . Total Robot Build Rating . | . . . . . . . Part Schematics Acquired . | . . . . . . . Parts Built . | . . . . . . . Authchips . | . . . . . . . Time . | . . . . . . . Total Part Build Rating . | . . . . . . . Part Studies Acquired . | . . . . . . . Parts Repaired . | . . . . . . . Time . | . . . . . . . Parts Recycled . | . . . . . . . Recycled Matter . | . . . . . . . Retrieved Matter . | . . . . . . . Retrieved Components . | . . . . . . . Parts Scanalyzed . | . . . . . . . Part Schematics Acquired . | . . . . . . . Parts Damaged . | . . . . . . . Bothacking | -11 -10 -10 -9 -9 -9 -9 ------------ Run | Yrd Mat Min Mat Sto Rec Scr Used RIF Installer . | . . . . . . . Robots Hacked . | . . . . . . . Non-combat . | . . . . . . . Combat . | . . . . . . . Robot Hacks Applied . | . . . . . . . Relay Couplers Released . | . . . . . . . Fabnet Peak Effective % . | . . . . . . . Robots Rewired 8 | . . . . . 8 . Allies Hacked . | . . . . . . . Hacks Repelled . | . . . . . . . Allies | -11 -10 -10 -9 -9 -9 -9 -------- Run | Yrd Mat Min Mat Sto Rec Scr Total Allies 16 | . . 3 . 5 8 . Largest Group 13 | . . 3 3 5 13 12 Highest-Rated Group 140 | . . 40 40 50 140 130 Highest-Rated Ally 21 | . . 16 16 10 21 21 Total Orders 1 | . . . . . . 1 STAY 1 | . . . . . . 1 Ally Attacks 43 | . . 8 9 1 13 12 Total Damage 635 | . . 88 101 74 181 191 Kills 5 | . . 2 1 . 2 . Allies Corrupted . | . . . . . . . Allies Melted . | . . . . . . . X0-1V1 Amusement Gains 164 | . 11 40 10 10 . 93 Average Entertainment 27 | . 11 40 36 26 12 100 Good Acts 18 | . . 4 3 5 6 . Bad Acts 5 | . . 1 2 . 2 . Intel | -11 -10 -10 -9 -9 -9 -9 ------- Run | Yrd Mat Min Mat Sto Rec Scr Active Infowar (turns) . | . . . . . . . Robot Analysis Total 9 | . 1 . . . . 8 Derelict Logs Recovered 1 | . . 1 . . . . Drone Launches . | . . . . . . . Drone Recoveries . | . . . . . . . Exploration | -11 -10 -10 -9 -9 -9 -9 ------------- Run | Yrd Mat Min Mat Sto Rec Scr Turns Passed 4290 | 83 1103 302 510 446 801 1045 Spaces Moved 2558 | 48 598 234 353 191 464 670 Core 18 | 15 . 3 . . . . Treads 712 | 33 598 9 52 20 . . Legs . | . . . . . . . Wheels 1828 | . . 222 301 171 464 670 Hover . | . . . . . . . Flight . | . . . . . . . Fastest Speed 50 | 50 160 80 80 86 135 105 Average Speed 139 | 150 160 83 96 157 149 149 Slowest Speed 320 | 200 160 200 160 320 150 150 Overloaded Moves . | . . . . . . . Propulsion Burnouts . | . . . . . . . Robots Hopped . | . . . . . . . Potential Cave-ins . | . . . . . . . Cave-ins Triggered . | . . . . . . . Exploration Rate (%) 54 | 3 94 48 42 36 87 74 Regions Visited 6 Branch Regions 4 Pre-discovered Areas 6 | . 1 . . . 5 . Known Exits Taken 2 | . . . 1 . 1 . Unknown Exits Taken 4 | 1 1 1 . 1 . . Scrap Searched 3 | . . 1 . . . 2 Spaces Dug . | . . . . . . . Terrain Destroyed 68 | . 28 29 . 11 . . Melee . | . . . . . . . Projectile . | . . . . . . . AOE 68 | . 28 29 . 11 . . Terrain Rammed . | . . . . . . . Walls Destroyed . | . . . . . . . Machines Disabled . | . . . . . . . Actions | -11 -10 -10 -9 -9 -9 -9 --------- Run | Yrd Mat Min Mat Sto Rec Scr Total 3068 | 56 690 288 467 289 565 713 Wait 192 | . 20 15 44 43 47 23 Move 2552 | 47 597 233 352 190 463 670 Hop . | . . . . . . . Pick Up 51 | 3 13 5 8 8 7 7 Fast Attach 23 | 6 5 1 10 1 . . Attach 16 | . 3 6 2 1 2 2 Detach 5 | . 1 . 2 . 2 . Swap 17 | . 6 1 3 4 . 3 Drop 26 | . 10 . 10 1 . 5 Fire 145 | . 35 27 36 41 5 1 Melee . | . . . . . . . Ram 1 | . . . . . . 1 Kick . | . . . . . . . Crush . | . . . . . . . Escape Stasis . | . . . . . . . Rewire 40 | . . . . . 39 1 Trap . | . . . . . . . Miscellaneous . | . . . . . . . Route ------- -11/Scrapyard -10/Materials (discovered 5 exits: *Mat x3 / [*Min] / [*Sub]) -10/Mines (discovered 2 exits: *Mat x2) -9/Materials (discovered 5 exits: *Mat / *Min x2 / *Sto x2) -9/Storage -9/Recycling (discovered 2 exits: [*Fac] / *Scr) -9/Scraptown (discovered 1 exit: [*Fac]) History --------- Turn | Location | Event 23 | -11/Scrapyard | Discovered new exit (range 16) 84 | -11/Scrapyard | Entered Materials 317 | -10/Materials | Build established: Mutant 441 | -10/Materials | Discovered new exit (range 9) 715 | -10/Materials | Discovered new exit (range 5) 954 | -10/Materials | Discovered new exit (range 9) 1109 | -10/Materials | Discovered new exit (range 6) 1163 | -10/Materials | Discovered new exit (range 6) 1169 | -10/Materials | Prayed at D.C.S.S. Altar Unit 1187 | -10/Materials | Entered Mines 1188 | -10/Mines | Assembled infested the area 1193 | -10/Mines | Assisted by a Guerilla fighting off Assembled 1198 | -10/Mines | Met a Derelict bent on vengeance 1215 | -10/Mines | Core integrity fell below 50% 1256 | -10/Mines | Core integrity fell below 20% 1285 | -10/Mines | Destroyed 13 combat bots 1285 | -10/Mines | Lost 7 parts (1p2n1u3w) 1402 | -10/Mines | Discovered new exit (range 9) 1425 | -10/Mines | Assisted by bots powering up and referring to "LRC-V3" 1435 | -10/Mines | Learned 4 Materials zone layouts 1437 | -10/Mines | Discovered new exit (range 9) 1489 | -10/Mines | Entered Materials 1489 | -9/Materials | Accompanied by 3 allies 1489 | -9/Materials | Evolved 2 slots: Propulsion x1, Utility x1 1490 | -9/Materials | Identified exit to Mines 1490 | -9/Materials | Identified exit to Materials 1512 | -9/Materials | X0-1V1 sent you to a vault 1557 | -9/Materials | System corruption reached 10% 1662 | -9/Materials | Energy capacity permanently improved by X0-1V1 (+200; -100 max core) 1762 | -9/Materials | X0-1V1 put everyone to sleep 1792 | -9/Materials | X0-1V1 made a cryptic comment about sterilization and BL-4Z3 1849 | -9/Materials | Identified exit to Storage 1865 | -9/Materials | Sterilization system engaged 1865 | -9/Materials | Non-combat units ordered to evacuate 1965 | -9/Materials | Combat units ordered to evacuate 1999 | -9/Materials | Entered Storage 2034 | -9/Storage | Propulsion slot count permanently improved by X0-1V1 (+1) 2373 | -9/Storage | X0-1V1 sent allied B-36 Bruiser (x5) 2430 | -9/Storage | Used back door to open Recycling access 2430 | -9/Storage | Discovered new exit (range 4) 2445 | -9/Storage | Entered Recycling 2445 | -9/Recycling | Accompanied by 5 allies 2614 | -9/Recycling | X0-1V1 activates XOMVISION 2688 | -9/Recycling | Discovered new exit (range 7) 2733 | -9/Recycling | Inventory capacity permanently improved by X0-1V1 (+1; -100 max core) 2864 | -9/Recycling | Identified exit to Scraptown 2864 | -9/Recycling | X0-1V1 revealed exit location to -9/Scraptown 2921 | -9/Recycling | Build established: Commander-Mutant 3159 | -9/Recycling | Scanned before Scraplab entrance 3167 | -9/Recycling | X0-1V1 added 0b10 threat records associated with you (minor) 3246 | -9/Recycling | Entered Scraptown 3246 | -9/Scraptown | Accompanied by 12 allies 3681 | -9/Scraptown | Discovered new exit (range 13) 3823 | -9/Scraptown | Visited UFD Registry 3823 | -9/Scraptown | Registered with UFD as "Flashmachine" 3859 | -9/Scraptown | Visited Abandonware Association 3876 | -9/Scraptown | Learned abandonware demo "REPAIR.EXE" 3876 | -9/Scraptown | Learned abandonware demo "SHUTEYE.EXE" 3909 | -9/Scraptown | Visited Curators Association 3957 | -9/Scraptown | Visited Scrapoid Research Area 3975 | -9/Scraptown | Visited Science Guys 4023 | -9/Scraptown | Visited Analyses Database 4057 | -9/Scraptown | Visited Research Penetration Think Tank 4083 | -9/Scraptown | Visited Modified Component R&D 4134 | -9/Scraptown | Visited Chapter 10 4176 | -9/Scraptown | Visited Cartography Club 4278 | -9/Scraptown | Attached CPS modules to Triborg 4279 | -9/Scraptown | Attacked by Scraptown defenders 4283 | -9/Scraptown | Visited Shadow of the Wyrm 4291 | -9/Scraptown | Self-destructed Last Messages --------------- 04283_ Destroyed Tech Extrapolator. 04283_ BQ-8GV(c) system corrupted by crushing effect. 04283_ Critical hit (Burn: +37). 04283_ Mercenary 2a destroyed. 04284_ Triborg heat short circuits Hyb. Fission Core. 04284_ Commando 2a destroyed. 04286_ Siege Slug penetrates B-36 Bruiser. 04286_ Penetrated by Siege Slug. 04286_ Arm. Wheel destroyed. 04286_ Knocked back. 04287_ Acquired 7 matter. 04287_ B-36 Bruiser Lgt. Treads ripped off. 04288_ B-36 Bruiser destroyed. 04288_ Critical hit (Burn: +37). 04289_ CPS Tube destroyed. 04290_ Attempting to rewire Wyrm Statue. 04290_ Wyrm Statue cannot be rewired. 04291_ Cld. Ion Engine destroyed. Map ----- +----------------------------------------------------+ | # ############????# ###?#"""" | | #####?# ## #????# ""#"#"""" | | ??????# ## #????# """"#"""" | | ??????# ## #????# ""#?#####" | | ??????# ## #????# ###?????#" | | ##????# ## #????# #########" | | ???# ## #????# | | ??# ## ??????# | | """"??# ## ???????# *%= | | ?# #? ?????????# % | | # #### ############ ! | | # % =%!% | | " % != | | """ # =% | | """"" # % % | | ####### % % | | # x #""""#" | | r #????#" | | # r #????#""" | | ###### #############r#;;####### ####????#### | | #???#"" ????????# #???# #????????# | | # #???#" " " ??????# #???# #????????# | | # #???#"" ?????# g g #???# #????????# | | # #???#"" "???# l gg #???# #????????# | | # #???#" " ""??# #???# #????????# | | # #????"" "??#" @ "#???# #????????# | | # #?????? """ ""??## "DD" ##???# #????????# | | # #?????? "" ?"""#??# #DD# #????# #????????# " | | # #?????? " ????"???########????# #????????#"" | | # #??????""?????????????????????# #????????### | | # #?????????????????????????????# #??????????? | | # #?????????????????????######### #??????????? | | # #?????????????????????""""""""" #??????????? | | # #????????????????????"""" """"" #??????????? | | ##????????????##???#"""" " "" #??????????? | | #???????????? #??????????? | | ##???###??#### ##??#"" "" "" " #??????????? | | ## ##???"""""?#""" "#????"""""""""" #??????????? | | ????????"" ""?#""" "#???????""""""" #??????????? | | #####??#"" "##""" "#????????###### #??????????? | | """"#??#" ""##"" "#?############# #??????????? | | "#??#"" ""##"" "#?#"""""""""""# #??????????? | | "#??#"" ""##" "#?#""!![!!* "# #??????????? | | """"#??#"" ""##" "#?#"" = |[[* "# #??????????? | | #####??#" ""##"" "#?#"" [[ "# #??????????? | | ########"" ""##"" ""###""" """""""# #??????????? | | #??????????? | | #??????????? | | ##"""" """""######""" """##""" """#####??????????? | | ?#" "#????#"" |"##"" "#??????????????? | +----------------------------------------------------+ Best States ------------- Heat Dissipation 50 Energy Generation 27 Energy Capacity 1280 Matter Stores 300 Matter Capacity 300 Sight Range 18 Terrain Scan Density 10 Evasion (%) 44 Recoil Reduction 2 Item Schematics ----------------- None Robot Schematics ------------------ None Fabricated ------------ Nothing Repaired ---------- Nothing Studied --------- None Alien Tech Used ----------------- None Achievements -------------- None Challenges ------------ None Game ------ Seed GravitonInertialInsulator Manual? 0 Play Time 00:27:59 Cumulative 311.9 hours Start 2026.09.01 @ 02:49:28 End 2026.09.01 @ 03:17:17 Sessions 1 Manual Loads 0 Difficulty Rogue Special Mode None Game No. 299 Rogue 245 Adventurer 54 Explorer 0 Win Type - Total 12 Types 8/0/1/1/0/0/0/1/0/1 Lore% 78 Gallery% 67 Achievement% 61 Wizard Run 0 Options --------- Layout 1 ASCII 0 Keyboard 0 Movement Mouse Keybinds 1 Fullscreen 2 Font 32/Tamsyn Map View 50x35 Zoom Use 0% Tactical HUD 1 Map Filters NONE Filters NONE Steam 1 RUN: f278aeda-7ef4-4462-b652-f89b3fec3ef5